Cogmind - Beta 14 @@@ ROGUE MODE // 2024.08.31 @ 23:34:57 Player: MadBadger Result: Destroyed by S-10 Pest with Light Assault Rifle Performance ------------- Evolutions (0) 0 Regions Visited (1) 200 Robots Destroyed (20) 100 Value Destroyed (488) 488 Prototype IDs (0) 0 Alien Tech Used (0) 0 Bonus (0) 0 TOTAL SCORE: 788 Bonus ------- None Cogmind --------- Core Integrity 0/250 Matter 300/300 Energy 246/250 System Corruption 0% Temperature Warm (124) Movement Treading (240) Ox1 Location -10/Materials Parts ------- > --- POWER (1) -------- Ion Engine > --- PROPULSION (2) --- Light Treads Light Treads > --- UTILITY (2) ------ High-capacity Storage Unit Sensor Array > --- WEAPON (2) ------- Medium Laser Small Laser > --- INVENTORY (20) --- Ion Engine Ion Engine Signal Interpreter Small Laser Beam Cannon Peak State ------------ > --- POWER ------------ Ion Engine > --- PROPULSION ------- Light Treads Light Treads > --- UTILITY ---------- High-capacity Storage Unit Visual Processing Unit > --- WEAPON ----------- Medium Laser Small Laser > --- INVENTORY -------- Ion Engine Ion Engine Signal Interpreter Small Laser Beam Cannon [Rating: 8] Favorites ----------- Power Light Ion Engine Engine Light Ion Engine Propulsion Light Treads Treads Light Treads Utility High-capacity Storage Unit Device Terrain Scanner Storage High-capacity Storage Unit Processor Visual Processing Unit Weapon Light Assault Rifle Energy Gun Medium Laser Ballistic Gun Light Assault Rifle Launcher Grenade Launcher Build | -11 -10 ------- Run | Yrd Mat Slots Evolved . | . . Power . | . . Propulsion . | . . Utility . | . . Weapon . | . . Parts Attached 20 | 6 14 Power 3 | 1 2 Engine 3 | 1 2 Core . | . . Reactor . | . . Propulsion 4 | 2 2 Treads 4 | 2 2 Leg . | . . Wheel . | . . Hover . | . . Flight . | . . Utility 5 | 1 4 Device 2 | . 2 Storage 2 | 1 1 Processor 1 | . 1 Hackware . | . . Protection . | . . Artifact . | . . Weapon 8 | 2 6 Energy Gun 4 | 1 3 Energy Cannon . | . . Ballistic Gun 1 | 1 . Ballistic Cannon . | . . Launcher 3 | . 3 Special Weapon . | . . Impact Weapon . | . . Slashing Weapon . | . . Piercing Weapon . | . . Special Melee Weapon . | . . Unidentified Prototypes . | . . Parts Lost 8 | . 8 Power 2 | . 2 Propulsion 2 | . 2 Utility 1 | . 1 Weapon 3 | . 3 Highest Loss Streak 5 | . 5 To Critical Strikes . | . . Average Slot Usage (%) 88 | . 88 Engine 13 | . 13 Treads 26 | . 26 Device 6 | . 6 Storage 14 | . 14 Energy Gun 12 | . 12 Ballistic Gun 7 | . 7 Launcher 6 | . 6 Peak Build Rating 8 | 6 8 Average Rating 6 | 4 6 On Entrance 3 | . 6 Naked Turns . | . . Heaviest Build 49 | 11 49 Greatest Support 40 | 40 40 Greatest Overweight (x) 15 | . 15 Average Overweight (x) . | . 1 Largest Inventory Capacity 20 | 8 20 Average Capacity 18 | 6 19 Most Carried 8 | 4 8 Average Carried 4 | 1 4 Final Capacity 20 | 8 20 Final Carried 5 | 4 5 Class Distribution -------------------- 100% | Mutant Dominant Class ---------------- Mutant | -10/Materials Resources | -11 -10 ----------- Run | Yrd Mat Matter Collected 577 | 201 376 Remotely . | . . Salvage Created 469 | . 469 Parts 35 | . 35 Haulers Intercepted . | . . Recyclers Shooed 3 | . 3 Parts Field Recycled . | . . Retrieved Matter . | . . Parts Self-Destructed . | . . Prevented . | . . Kills | -11 -10 ------- Run | Yrd Mat Combat Hostiles Destroyed 15 | . 15 Guns 6 | . 6 AOE 8 | . 8 Classes Destroyed 6 | . 6 Worker 2 | . 2 Builder 1 | . 1 Recycler 1 | . 1 Watcher 1 | . 1 Swarmer 5 | . 5 Grunt 10 | . 10 Best Kill Streak 5 | . 5 Combat Bots Only 3 | . 3 Max Kills in Single Turn 2 | . 2 Gunslinging . | . . Exploded 2 | . 2 Melee . | . . Uniques/NPCs Destroyed . | . . Combat | -11 -10 -------- Run | Yrd Mat Hostile Shots Fired 132 | . 132 Missed 41 | . 41 Damage Taken 1032 | . 1032 Core 258 | . 258 Absorbed by Shields . | . . Core Remaining (%) 100 | 100 . Volleys Fired 74 | . 74 Largest 2 | . 2 Hottest 90 | . 90 Shots Fired 108 | . 108 Gun 88 | . 88 Cannon . | . . Launcher 20 | . 20 Special . | . . Kinetic 20 | . 20 Thermal 63 | . 63 Explosive 20 | . 20 Electromagnetic 5 | . 5 Robot Hit Streak 9 | . 9 Robot Miss Streak 4 | . 4 Penetration Max . | . . Secondary Targets 4 | . 4 Max Gunslinging Chain 1 | . 1 Shots Hit Robots 56 | . 56 Core Hits 40 | . 40 Critical Kills . | . . Critical Parts Destroyed . | . . Critical Strikes 8 | . 8 Burn 7 | . 7 Corrupt 1 | . 1 Melee Attacks . | . . Impact . | . . Slashing . | . . Piercing . | . . Sneak Attacks . | . . Combat Hostiles . | . . Follow-up Attacks . | . . Damage Inflicted 1661 | . 1661 Guns 553 | . 553 Cannons . | . . Explosions 1105 | . 1105 Melee . | . . Ramming 3 | . 3 Kinetic 61 | . 61 Thermal 434 | . 434 Explosive 1105 | . 1105 Electromagnetic 58 | . 58 Impact . | . . Slashing . | . . Piercing . | . . Highest Corruption . | . . Average Corruption . | . . Corruption Purged . | . . Corruption Blocked . | . . Overload Shots . | . . Overflow Damage 8 | . 8 Projectiles . | . . Explosions 8 | . 8 Melee . | . . Knockbacks . | . . Impact . | . . Kinetic . | . . Secondary . | . . Self-Inflicted Damage 33 | . 33 Shots 1 | . 1 Rammed 1 | . 1 Targets Rammed 1 | . 1 Kicked . | . . Crushed . | . . Highest Temperature 190 | . 190 Average Temperature 69 | . 69 Received Heat Transfer 489 | . 489 Siege Activations . | . . Robots Corrupted . | . . Combat Hostiles . | . . Parts Fried . | . . Impact Corruptions . | . . Robots Melted 1 | . 1 Combat Hostiles 1 | . 1 Parts Melted . | . . Heat Transferred 1707 | . 1707 Parts Sabotaged . | . . Parts Stolen . | . . Parts Stripped . | . . Power Chain Reactions . | . . Alert | -11 -10 ------- Run | Yrd Mat Peak Influence 243 | . 243 Initial . | . . Average 60 | . 64 Maximum Alert Level 1 | . 1 Low Security (%) 95 | 100 95 Level 1 4 | . 4 Level 2 . | . . Level 3 . | . . Level 4 . | . . Level 5 . | . . High Security . | . . Max Security . | . . Squads Dispatched 2 | . 2 Investigation 1 | . 1 Extermination . | . . Reinforcement 1 | . 1 Assault . | . . Garrison . | . . Intercept . | . . Searches Triggered . | . . Construction Impeded . | . . Haulers Reinforced . | . . Active Scanning Responses . | . . Cargo Convoy Interrupts . | . . Stealth | -11 -10 --------- Run | Yrd Mat Distress Signals . | . . Communications Jammed . | . . Distress Signals . | . . Times Spotted 34 | . 34 Peak Tracking Total 5 | . 5 Tactical Retreats 1 | . 1 Traps | -11 -10 ------- Run | Yrd Mat Traps Triggered 1 | . 1 Indirectly . | . . Trap Hack Attempts . | . . Triggered . | . . Disarmed . | . . Reprogrammed . | . . Reused . | . . Traps Extracted . | . . Installed . | . . Triggered . | . . Machines | -11 -10 ---------- Run | Yrd Mat Machines Disabled 6 | . 6 Max in Single Turn 2 | . 2 Machines Repaired . | . . Machines Dismantled . | . . Machines Sabotaged . | . . Overloaded Fab Kills . | . . Hacking | -11 -10 --------- Run | Yrd Mat Machines Accessed . | . . Terminals . | . . Fabricators . | . . Repair Stations . | . . Recycling Units . | . . Scanalyzers . | . . Garrison Access . | . . Total Hacks . | . . Successful . | . . Failed . | . . Catastrophic . | . . Database Lockouts . | . . Manual . | . . Terminals . | . . Fabricators . | . . Repair Stations . | . . Recycling Units . | . . Scanalyzers . | . . Garrison Access . | . . Terminal Hacks . | . . Fabricator Hacks . | . . Repair Station Hacks . | . . Recycling Unit Hacks . | . . Scanalyzer . | . . Garrison Access Hacks . | . . Unauthorized Hacks . | . . Terminals . | . . Fabricators . | . . Repair Stations . | . . Recycling Units . | . . Scanalyzers . | . . Garrison Access . | . . Data Cores Recovered . | . . Used . | . . Hacking Detections . | . . Full Trace Events . | . . Feedback Events . | . . Feedback Blocked . | . . Robot Schematics Acquired . | . . Robots Built . | . . Authchips . | . . Time . | . . Total Robot Build Rating . | . . Part Schematics Acquired . | . . Parts Built . | . . Authchips . | . . Time . | . . Total Part Build Rating . | . . Parts Repaired . | . . Time . | . . Parts Recycled . | . . Recycled Matter . | . . Retrieved Matter . | . . Retrieved Components . | . . Parts Scanalyzed . | . . Part Schematics Acquired . | . . Parts Damaged . | . . Bothacking | -11 -10 ------------ Run | Yrd Mat Used RIF Installer . | . . Robots Hacked . | . . Non-combat . | . . Combat . | . . Robot Hacks Applied . | . . Relay Couplers Released . | . . Fabnet Peak Effective % . | . . Robots Rewired . | . . Allies Hacked . | . . Hacks Repelled . | . . Allies | -11 -10 -------- Run | Yrd Mat Total Allies . | . . Largest Group . | . . Highest-Rated Group . | . . Highest-Rated Ally . | . . Total Orders . | . . Ally Attacks . | . . Total Damage . | . . Kills . | . . Allies Corrupted . | . . Allies Melted . | . . Intel | -11 -10 ------- Run | Yrd Mat Robot Analysis Total . | . . Derelict Logs Recovered . | . . Drone Launches . | . . Drone Recoveries . | . . Exploration | -11 -10 ------------- Run | Yrd Mat Turns Passed 2101 | 119 1982 Spaces Moved 808 | 70 738 Core 18 | 6 12 Treads 790 | 64 726 Legs . | . . Wheels . | . . Hover . | . . Flight . | . . Fastest Speed 50 | 50 160 Average Speed 231 | 150 238 Slowest Speed 800 | 160 800 Overloaded Moves . | . . Propulsion Burnouts . | . . Robots Hopped . | . . Cave-ins Triggered . | . . Exploration Rate (%) 46 | 4 89 Regions Visited 1 Branch Regions . Pre-discovered Areas . | . . Known Exits Taken . | . . Unknown Exits Taken 1 | 1 . Scrap Searched . | . . Spaces Dug 10 | . 10 Terrain Destroyed 90 | . 90 Melee . | . . Projectile . | . . AOE 90 | . 90 Terrain Rammed . | . . Walls Destroyed . | . . Machines Disabled . | . . Actions | -11 -10 --------- Run | Yrd Mat Total 935 | 81 854 Wait 14 | 2 12 Move 807 | 69 738 Hop . | . . Pick Up 13 | 4 9 Fast Attach 11 | 6 5 Attach 7 | . 7 Detach 3 | . 3 Swap 2 | . 2 Drop 3 | . 3 Fire 74 | . 74 Melee . | . . Ram . | . . Kick . | . . Crush 1 | . 1 Escape Stasis . | . . Rewire . | . . Trap . | . . Miscellaneous . | . . Route ------- -11/Scrapyard -10/Materials (discovered 3 exits: [*Mat x2] / [*Min]) History --------- Turn | Location | Event 23 | -11/Scrapyard | Discovered new exit (range 15) 120 | -11/Scrapyard | Entered Materials 303 | -10/Materials | Build established: Mutant 365 | -10/Materials | Discovered new exit (range 9) 543 | -10/Materials | Discovered new exit (range 15) 1222 | -10/Materials | Core integrity fell below 50% 1241 | -10/Materials | Core integrity fell below 20% 1269 | -10/Materials | Lost 5 parts (1p2n1u1w) 1533 | -10/Materials | Discovered new exit (range 9) 2102 | -10/Materials | Destroyed by S-10 Pest with Light Assault Rifle Last Messages --------------- 01478_ G-34 Mercenary suffers critical hit (Burn). 01481_ G-34 Mercenary destroyed. 01506_ Acquired Sml. Laser. 01533_ EXIT=FOUND 01625_ W-16 Scout suffers critical hit (Burn). 01892_ W-16 Scout destroyed. 01937_ Acquired Signal Interpreter. 01940_ Acquired Visual Processing Unit. 01944_ Acquired Sensor Array. 01945_ Discarded Visual Processing Unit. 01949_ Acquired 20 matter. 02023_ U-05 Engineer suffers critical hit (Burn). 02075_ U-05 Engineer works on Processing Tank. 02081_ U-05 Engineer destroyed. 02081_ Switching to secondary target: S-10 Pest. 02087_ S-10 Pest destroyed. 02087_ Switching to secondary target: S-10 Pest. 02093_ S-10 Pest destroyed. 02093_ Switching to secondary target: S-10 Pest. 02096_ S-10 Pest suffers critical hit (Burn). Map ----- +----------------------------------------------------+ | | | | | | | | | | | | | | | | | | | | | | | ??????????????????????????#??????????????????????# | | ??????????????????????#"""""????????#######??????# | | ???????????????T"?#####""T""######## ???# | | ????????????? # """ = # | | ????????????? # """ # | | ?????????????? """ + """ !!! ! # | | ??????????????? * "R" # !!! # | | ??????????????? =%[ " " #= !!! # | | ???????????????""" """ ##############? | | ???????????????""" """ #?????????????? | | ???????????????""" <= """ #######???????? | | ???????????????""" <%!""" # ######### | | ???????????# """ |= """ | | ???????????# a s | | ???????????# %= =@* w % | | ??????????????######"T"##/########## ######### | | ???????????????? ??#"??# ????######+####??????? | | ???????????????????????# """ ??# #??????? | | ?????????????? ????????# """ # #???#### | | ???????????????????????# """ # #???# | | ???????????????????????# # #???# | | ???????????????????????# """ # =%= #???# | | ?????????? ????????????# ""? ? # #???# | | ???????????????????????# ""????# #???# | | ?????#????????########?# ???? # #???# | | ????#?????????# #?####????###+###/########### | | ??????????????# !!! #??????????# ### | | ?##?########### !!! ##??????#??# = + """ | | ????# # !! #???#??????# ### """ | | ????# ""# #?#???#????# #?# """ | | ????# Y"# ##?#??#??# # ! ### | | ????# ###+######?##?#?# ^ =### """ | | ????# """ ] # ##???#?######## * + """ | | ????# """ + "#########?#?## ### """ | | ##### """ ! # T# |"|""#???## ### | | # # """ "# | #??### ######### | | #######+### """ ## ##### #??????? | | "" = #??????? | | ###### < T #??????? | +----------------------------------------------------+ Best States ------------- Heat Dissipation 25 Energy Generation 10 Energy Capacity 250 Matter Stores 300 Matter Capacity 300 Sight Range 16 Robot Scan Range 14 Terrain Scan Range 14 Terrain Scan Density 10 Evasion (%) 40 Recoil Reduction 2 Item Schematics ----------------- None Robot Schematics ------------------ None Fabricated ------------ Nothing Alien Tech Used ----------------- None Achievements -------------- None Challenges ------------ None Game ------ Seed HeatHeartReplica Manual? 0 Play Time 00:14:41 Cumulative 13.6 hours Start 2024.08.31 @ 23:18:03 End 2024.08.31 @ 23:34:57 Sessions 1 Manual Loads 0 Difficulty Rogue Special Mode None Game No. 23 Rogue 23 Adventurer 0 Explorer 0 Win Type - Total 0 Types 0/0/0/0/0/0/0/0/0 Lore% 6 Gallery% 11 Achievement% 13 Wizard Run 0 Options --------- Layout 0 ASCII 0 Keyboard 1 Movement Numpad Keybinds 0 Fullscreen 1 Font 24/Smallcaps Map View 76x50 Zoom Use 0% Tactical HUD 1 Map Filters NONE Filters NONE Steam 1 RUN: 9ed8e4ad-652e-4bc3-9be9-cccb6922aca4